[Event "*** SCC Grand Prix: Titled Tuesday Blitz"]
[Site "Chess.com"]
[Date "2020.07.21"]
[Round "6"]
[White "BillieKimbah"]
[Black "Mikhail_Golubev"]
[Result "1-0"]
[WhiteElo "2886"]
[BlackElo "2602"]
[TimeControl "180+1"]
[EndTime "11:07:55 PDT"]
[Termination "BillieKimbah won on time"]

1. d4 {[%clk 0:03:00.9]} 1... Nf6 {[%clk 0:02:57.8]} 2. Nf3 {[%clk 0:03:01.3]}
2... d6 {[%clk 0:02:57.2]} 3. Nc3 {[%clk 0:03:00.4]} 3... g6 {[%clk 0:02:55.3]}
4. e4 {[%clk 0:03:00]} 4... Bg7 {[%clk 0:02:55.5]} 5. Be3 {[%clk 0:02:55.9]}
5... O-O {[%clk 0:02:52]} 6. h3 {[%clk 0:02:54.8]} 6... c6 {[%clk 0:02:43.8]} 7.
a4 {[%clk 0:02:54.2]} 7... Nbd7 {[%clk 0:02:40.8]} 8. Bc4 {[%clk 0:02:52.2]}
8... d5 {[%clk 0:02:35.2]} 9. Bd3 {[%clk 0:02:47.3]} 9... dxe4 {[%clk
0:02:33.4]} 10. Nxe4 {[%clk 0:02:48.2]} 10... Nd5 {[%clk 0:02:24.7]} 11. Bd2
{[%clk 0:02:43.9]} 11... e5 {[%clk 0:02:23.9]} 12. dxe5 {[%clk 0:02:21.7]} 12...
Nxe5 {[%clk 0:02:20.7]} 13. Nxe5 {[%clk 0:02:21.8]} 13... Bxe5 {[%clk
0:02:20.7]} 14. Rb1 {[%clk 0:02:19.7]} 14... Nf4 {[%clk 0:02:16.7]} 15. Bxf4
{[%clk 0:02:19.2]} 15... Bxf4 {[%clk 0:02:16.6]} 16. Qf3 {[%clk 0:02:18.6]}
16... Be5 {[%clk 0:02:01.5]} 17. O-O {[%clk 0:02:18.3]} 17... Bf5 {[%clk
0:02:01.3]} 18. Nc5 {[%clk 0:02:16.3]} 18... Qe7 {[%clk 0:01:44.7]} 19. b4
{[%clk 0:02:13.2]} 19... Bxd3 {[%clk 0:01:42.1]} 20. Nxd3 {[%clk 0:02:13]} 20...
Bg7 {[%clk 0:01:41.1]} 21. Rfe1 {[%clk 0:02:12.5]} 21... Qc7 {[%clk 0:01:40.8]}
22. Re4 {[%clk 0:02:06.1]} 22... a5 {[%clk 0:01:34.6]} 23. b5 {[%clk 0:01:53.2]}
23... cxb5 {[%clk 0:01:34]} 24. Rxb5 {[%clk 0:01:54.1]} 24... Qxc2 {[%clk
0:01:28.9]} 25. Rxb7 {[%clk 0:01:53.5]} 25... Rad8 {[%clk 0:01:27.6]} 26. Nf4
{[%clk 0:01:42.1]} 26... Rd1+ {[%clk 0:01:15.6]} 27. Kh2 {[%clk 0:01:41.5]}
27... Qc1 {[%clk 0:01:15.9]} 28. g3 {[%clk 0:01:33.3]} 28... Qc6 {[%clk
0:01:05.3]} 29. Qxd1 {[%clk 0:00:50.8]} 29... Qxe4 {[%clk 0:01:04.6]} 30. Rd7
{[%clk 0:00:44.7]} 30... h5 {[%clk 0:00:50.2]} 31. h4 {[%clk 0:00:44.6]} 31...
Be5 {[%clk 0:00:42]} 32. Re7 {[%clk 0:00:39.8]} 32... Qd4 {[%clk 0:00:35.5]} 33.
Qxd4 {[%clk 0:00:33.5]} 33... Bxd4 {[%clk 0:00:35.4]} 34. Kg2 {[%clk 0:00:33.2]}
34... Rc8 {[%clk 0:00:33.8]} 35. Rd7 {[%clk 0:00:33.3]} 35... Rc4 {[%clk
0:00:32.8]} 36. Nd5 {[%clk 0:00:23.8]} 36... Rxa4 {[%clk 0:00:32.6]} 37. Ne7+
{[%clk 0:00:21.8]} 37... Kg7 {[%clk 0:00:31.4]} 38. Nc6 {[%clk 0:00:21.9]} 38...
Bc3 {[%clk 0:00:29.8]} 39. Nd8 {[%clk 0:00:21.2]} 39... Rc4 {[%clk 0:00:10.2]}
40. Nxf7 {[%clk 0:00:19.9]} 40... Kg8 {[%clk 0:00:09.9]} 41. Ng5 {[%clk
0:00:09.9]} 41... a4 {[%clk 0:00:09.9]} 42. Ra7 {[%clk 0:00:10]} 42... Bb2
{[%clk 0:00:09]} 43. Ne6 {[%clk 0:00:08]} 43... a3 {[%clk 0:00:08.5]} 44. f4
{[%clk 0:00:07.3]} 44... Rc2+ {[%clk 0:00:06.2]} 45. Kf3 {[%clk 0:00:07.7]}
45... Rc3+ {[%clk 0:00:06.8]} 46. Ke4 {[%clk 0:00:07.5]} 46... Rxg3 {[%clk
0:00:06.4]} 47. Ra8+ {[%clk 0:00:06.5]} 47... Kf7 {[%clk 0:00:05.6]} 48. Ng5+
{[%clk 0:00:07.4]} 48... Ke7 {[%clk 0:00:05.7]} 49. Ra7+ {[%clk 0:00:05.6]}
49... Kd6 {[%clk 0:00:05]} 50. Nf7+ {[%clk 0:00:05.5]} 50... Kc5 {[%clk
0:00:04.7]} 51. Ne5 {[%clk 0:00:06.4]} 51... Rh3 {[%clk 0:00:03.7]} 52. Nxg6
{[%clk 0:00:06.4]} 52... Kb4 {[%clk 0:00:02.7]} 53. f5 {[%clk 0:00:04.7]} 53...
Kb3 {[%clk 0:00:02.3]} 54. Rb7+ {[%clk 0:00:04.6]} 54... Ka4 {[%clk 0:00:01.6]}
55. Ra7+ {[%clk 0:00:04.9]} 55... Kb3 {[%clk 0:00:01.1]} 56. Nf4 {[%clk
0:00:04.8]} 1-0

[Event "*** SCC Grand Prix: Titled Tuesday Blitz"]
[Site "Chess.com"]
[Date "2020.07.21"]
[Round "6"]
[White "Paladin61"]
[Black "MusicCityMaster"]
[Result "1-0"]
[WhiteElo "2624"]
[BlackElo "2445"]
[TimeControl "180+1"]
[EndTime "11:07:56 PDT"]
[Termination "Paladin61 won by checkmate"]

1. b3 {[%clk 0:02:58.7]} 1... d5 {[%clk 0:02:58.8]} 2. Bb2 {[%clk 0:02:59.6]}
2... Nf6 {[%clk 0:02:56.4]} 3. Nf3 {[%clk 0:02:58.8]} 3... c5 {[%clk 0:02:55.2]}
4. e3 {[%clk 0:02:57.6]} 4... Nc6 {[%clk 0:02:52.4]} 5. Bb5 {[%clk 0:02:57.2]}
5... Bd7 {[%clk 0:02:50.4]} 6. O-O {[%clk 0:02:53.6]} 6... e6 {[%clk 0:02:49.3]}
7. d3 {[%clk 0:02:53.1]} 7... Bd6 {[%clk 0:02:45.2]} 8. e4 {[%clk 0:02:52.5]}
8... d4 {[%clk 0:02:15.3]} 9. Nbd2 {[%clk 0:02:47.5]} 9... Bf4 {[%clk
0:01:57.2]} 10. Nc4 {[%clk 0:02:33.2]} 10... O-O {[%clk 0:01:55.2]} 11. Bc1
{[%clk 0:02:07.3]} 11... Qc7 {[%clk 0:01:48]} 12. Bxf4 {[%clk 0:01:42.3]} 12...
Qxf4 {[%clk 0:01:47.4]} 13. Bxc6 {[%clk 0:01:38]} 13... Bxc6 {[%clk 0:01:46.5]}
14. Nfe5 {[%clk 0:01:33.5]} 14... Be8 {[%clk 0:01:31.5]} 15. g3 {[%clk
0:01:24.8]} 15... Qh6 {[%clk 0:01:30.8]} 16. f4 {[%clk 0:01:22.7]} 16... Rd8
{[%clk 0:01:13.3]} 17. a4 {[%clk 0:00:57.7]} 17... Nd7 {[%clk 0:01:12.3]} 18.
Ng4 {[%clk 0:00:56.3]} 18... Qh5 {[%clk 0:01:04.8]} 19. f5 {[%clk 0:00:48.8]}
19... Kh8 {[%clk 0:00:23.2]} 20. fxe6 {[%clk 0:00:37.5]} 20... fxe6 {[%clk
0:00:15.3]} 21. Rxf8+ {[%clk 0:00:38.4]} 21... Nxf8 {[%clk 0:00:15.2]} 22. Qf3
{[%clk 0:00:37.5]} 22... Bg6 {[%clk 0:00:13.1]} 23. Rf1 {[%clk 0:00:35.9]} 23...
h6 {[%clk 0:00:13.4]} 24. Nge5 {[%clk 0:00:24]} 24... Qxf3 {[%clk 0:00:13.4]}
25. Rxf3 {[%clk 0:00:23.7]} 25... Kh7 {[%clk 0:00:14]} 26. g4 {[%clk 0:00:21.1]}
26... b6 {[%clk 0:00:13.8]} 27. h4 {[%clk 0:00:18.7]} 27... h5 {[%clk
0:00:14.3]} 28. g5 {[%clk 0:00:16.1]} 28... Re8 {[%clk 0:00:12.9]} 29. Kh2
{[%clk 0:00:14.1]} 29... Rd8 {[%clk 0:00:12.7]} 30. Kg3 {[%clk 0:00:14]} 30...
Nd7 {[%clk 0:00:12.8]} 31. Nxd7 {[%clk 0:00:12.6]} 31... Rxd7 {[%clk 0:00:13.7]}
32. Rf8 {[%clk 0:00:12.3]} 32... Rb7 {[%clk 0:00:13.6]} 33. Kf4 {[%clk
0:00:10.4]} 33... Bf7 {[%clk 0:00:13.9]} 34. Nd6 {[%clk 0:00:08.4]} 34... Rd7
{[%clk 0:00:12.9]} 35. Nxf7 {[%clk 0:00:08.2]} 35... g6 {[%clk 0:00:13.1]} 36.
Ne5 {[%clk 0:00:07.7]} 36... Rd6 {[%clk 0:00:13.4]} 37. Rf7+ {[%clk 0:00:07.7]}
37... Kg8 {[%clk 0:00:13.7]} 38. Rxa7 {[%clk 0:00:07.6]} 38... b5 {[%clk
0:00:14.2]} 39. axb5 {[%clk 0:00:06]} 39... Rb6 {[%clk 0:00:14.7]} 40. Nd7
{[%clk 0:00:05.9]} 40... Rxb5 {[%clk 0:00:14.9]} 41. Nf6+ {[%clk 0:00:06]} 41...
Kf8 {[%clk 0:00:15.6]} 42. Nd7+ {[%clk 0:00:05]} 42... Ke8 {[%clk 0:00:15.3]}
43. Ne5 {[%clk 0:00:05.9]} 43... Rb6 {[%clk 0:00:14.9]} 44. Nxg6 {[%clk
0:00:06]} 44... c4 {[%clk 0:00:15.3]} 45. dxc4 {[%clk 0:00:05.3]} 45... e5+
{[%clk 0:00:15.1]} 46. Nxe5 {[%clk 0:00:05.4]} 46... Re6 {[%clk 0:00:15.1]} 47.
g6 {[%clk 0:00:05.3]} 47... Kf8 {[%clk 0:00:14.9]} 48. Kf5 {[%clk 0:00:04.6]}
48... Rb6 {[%clk 0:00:14.7]} 49. Nd7+ {[%clk 0:00:05]} 49... Kg8 {[%clk
0:00:13.9]} 50. Nxb6 {[%clk 0:00:05.6]} 50... Kf8 {[%clk 0:00:14.5]} 51. Ke6
{[%clk 0:00:04.4]} 51... d3 {[%clk 0:00:14.6]} 52. g7+ {[%clk 0:00:04.5]} 52...
Kg8 {[%clk 0:00:14.5]} 53. Kf6 {[%clk 0:00:04.9]} 53... dxc2 {[%clk 0:00:13.4]}
54. Ra8+ {[%clk 0:00:05.8]} 54... Kh7 {[%clk 0:00:13.9]} 55. Rh8# {[%clk
0:00:06.6]} 1-0

[Event "*** SCC Grand Prix: Titled Tuesday Blitz"]
[Site "Chess.com"]
[Date "2020.07.21"]
[Round "6"]
[White "Supernotar"]
[Black "Maksat-94"]
[Result "0-1"]
[WhiteElo "2713"]
[BlackElo "2469"]
[TimeControl "180+1"]
[EndTime "11:07:58 PDT"]
[Termination "Maksat-94 won by checkmate"]

1. d4 {[%clk 0:03:00.9]} 1... Nf6 {[%clk 0:02:58.5]} 2. c4 {[%clk 0:02:59.3]}
2... c5 {[%clk 0:02:57.6]} 3. d5 {[%clk 0:02:58.4]} 3... e6 {[%clk 0:02:57.2]}
4. Nc3 {[%clk 0:02:58]} 4... exd5 {[%clk 0:02:56.6]} 5. cxd5 {[%clk 0:02:58.9]}
5... Bd6 {[%clk 0:02:56.8]} 6. Nf3 {[%clk 0:02:58.7]} 6... O-O {[%clk
0:02:52.5]} 7. Nd2 {[%clk 0:02:58.7]} 7... Bc7 {[%clk 0:02:51]} 8. g3 {[%clk
0:02:58.3]} 8... d6 {[%clk 0:02:51.1]} 9. Bg2 {[%clk 0:02:58.1]} 9... Re8 {[%clk
0:02:51.5]} 10. O-O {[%clk 0:02:57.1]} 10... a6 {[%clk 0:02:51.9]} 11. a4 {[%clk
0:02:56.8]} 11... Nbd7 {[%clk 0:02:51.5]} 12. b3 {[%clk 0:02:56.5]} 12... Rb8
{[%clk 0:02:50.7]} 13. Bb2 {[%clk 0:02:56.6]} 13... b5 {[%clk 0:02:49.3]} 14.
axb5 {[%clk 0:02:56.6]} 14... axb5 {[%clk 0:02:49.3]} 15. Re1 {[%clk 0:02:53.9]}
15... Ne5 {[%clk 0:02:42.2]} 16. Qc2 {[%clk 0:02:52.8]} 16... Bd7 {[%clk
0:02:32]} 17. h3 {[%clk 0:02:48]} 17... Bb6 {[%clk 0:02:29.9]} 18. Kh2 {[%clk
0:02:45.5]} 18... c4 {[%clk 0:02:24.4]} 19. f4 {[%clk 0:02:31.9]} 19... Neg4+
{[%clk 0:02:22.7]} 20. hxg4 {[%clk 0:02:31.6]} 20... Nxg4+ {[%clk 0:02:22.5]}
21. Kh1 {[%clk 0:02:31.7]} 21... Nf2+ {[%clk 0:01:42.9]} 22. Kg1 {[%clk
0:02:14.9]} 22... Nd3+ {[%clk 0:01:32]} 23. Kf1 {[%clk 0:02:13.5]} 23... Nxe1
{[%clk 0:01:25]} 24. Rxe1 {[%clk 0:02:13.1]} 24... b4 {[%clk 0:01:24.8]} 25.
Nxc4 {[%clk 0:02:00.7]} 25... bxc3 {[%clk 0:01:24.6]} 26. Qxc3 {[%clk
0:02:01.2]} 26... f6 {[%clk 0:01:24.9]} 27. Nxd6 {[%clk 0:01:59.2]} 27... Re3
{[%clk 0:01:09.1]} 28. Qc4 {[%clk 0:01:43]} 28... Rxg3 {[%clk 0:00:46.8]} 29.
Ne4 {[%clk 0:01:42.6]} 29... Rg4 {[%clk 0:00:25.6]} 30. Nf2 {[%clk 0:01:29.8]}
30... Bxf2 {[%clk 0:00:22]} 31. Kxf2 {[%clk 0:01:29.6]} 31... Qb6+ {[%clk
0:00:22]} 32. Bd4 {[%clk 0:01:14.5]} 32... Rxf4+ {[%clk 0:00:20.4]} 33. Ke3
{[%clk 0:01:12.6]} 33... Rxd4 {[%clk 0:00:20.2]} 34. Qxd4 {[%clk 0:01:12]} 34...
Re8+ {[%clk 0:00:20.2]} 35. Be4 {[%clk 0:01:04.4]} 35... Qxb3+ {[%clk
0:00:19.4]} 36. Qd3 {[%clk 0:01:03.1]} 36... Qb4 {[%clk 0:00:18.8]} 37. Kf3
{[%clk 0:01:00]} 37... f5 {[%clk 0:00:18.8]} 38. Bxf5 {[%clk 0:00:59.6]} 38...
Bxf5 {[%clk 0:00:18.7]} 39. Qxf5 {[%clk 0:00:52.2]} 39... Rf8 {[%clk 0:00:19]}
40. Qxf8+ {[%clk 0:00:50]} 40... Kxf8 {[%clk 0:00:18]} 41. Rd1 {[%clk 0:00:50]}
41... Ke7 {[%clk 0:00:17.5]} 42. Rd3 {[%clk 0:00:48]} 42... Kd6 {[%clk
0:00:16.4]} 43. e4 {[%clk 0:00:48]} 43... Ke5 {[%clk 0:00:16.4]} 44. Re3 {[%clk
0:00:47.7]} 44... Qd4 {[%clk 0:00:16.9]} 45. Re2 {[%clk 0:00:45.9]} 45... g5
{[%clk 0:00:16.7]} 46. Re1 {[%clk 0:00:45.8]} 46... h6 {[%clk 0:00:17]} 47. Re2
{[%clk 0:00:45.5]} 47... h5 {[%clk 0:00:17]} 48. Re1 {[%clk 0:00:43.7]} 48...
Qd3+ {[%clk 0:00:17]} 49. Re3 {[%clk 0:00:43.4]} 49... g4+ {[%clk 0:00:17.3]}
50. Kf2 {[%clk 0:00:42.7]} 50... Qd2+ {[%clk 0:00:12]} 51. Re2 {[%clk 0:00:43]}
51... Qf4+ {[%clk 0:00:11.4]} 52. Kg1 {[%clk 0:00:39.9]} 52... h4 {[%clk
0:00:11.7]} 53. Rf2 {[%clk 0:00:31.3]} 53... Qxe4 {[%clk 0:00:11.7]} 54. d6
{[%clk 0:00:31.4]} 54... Kxd6 {[%clk 0:00:11]} 55. Rd2+ {[%clk 0:00:31.3]} 55...
Ke5 {[%clk 0:00:10.2]} 56. Rf2 {[%clk 0:00:31.3]} 56... g3 {[%clk 0:00:10.5]}
57. Rf1 {[%clk 0:00:27.4]} 57... h3 {[%clk 0:00:09.4]} 58. Rf2 {[%clk
0:00:21.7]} 58... Qe1+ {[%clk 0:00:08.5]} 59. Rf1 {[%clk 0:00:21.5]} 59... Qe3+
{[%clk 0:00:08.4]} 60. Kh1 {[%clk 0:00:21.2]} 60... Qe4+ {[%clk 0:00:08.3]} 61.
Rf3 {[%clk 0:00:21.5]} 61... Qxf3+ {[%clk 0:00:08.2]} 62. Kg1 {[%clk 0:00:22.4]}
62... Qg2# {[%clk 0:00:08]} 0-1

[Event "*** SCC Grand Prix: Titled Tuesday Blitz"]
[Site "Chess.com"]
[Date "2020.07.21"]
[Round "6"]
[White "Orest_Vovk"]
[Black "viktorskliarov"]
[Result "0-1"]
[WhiteElo "2391"]
[BlackElo "2590"]
[TimeControl "180+1"]
[EndTime "11:08:01 PDT"]
[Termination "viktorskliarov won by resignation"]

1. h4 {[%clk 0:03:00.9]} 1... h5 {[%clk 0:02:48.7]} 2. Nf3 {[%clk 0:03:00.1]}
2... Nf6 {[%clk 0:02:48.8]} 3. Ng5 {[%clk 0:02:59.8]} 3... d5 {[%clk 0:02:40.4]}
4. e4 {[%clk 0:02:59.3]} 4... dxe4 {[%clk 0:02:37.4]} 5. Qe2 {[%clk 0:02:57.2]}
5... c6 {[%clk 0:02:27.9]} 6. Nxe4 {[%clk 0:02:48.5]} 6... Nxe4 {[%clk
0:02:27.3]} 7. Qxe4 {[%clk 0:02:48.7]} 7... Nd7 {[%clk 0:02:27.6]} 8. Nc3 {[%clk
0:02:45.3]} 8... Nf6 {[%clk 0:02:26.9]} 9. Qf4 {[%clk 0:02:15.2]} 9... g6 {[%clk
0:02:07.8]} 10. Bc4 {[%clk 0:01:58.2]} 10... Bh6 {[%clk 0:02:03.3]} 11. Qg3
{[%clk 0:01:45.2]} 11... b5 {[%clk 0:01:17.9]} 12. Bb3 {[%clk 0:01:43.7]} 12...
Bf5 {[%clk 0:01:03.3]} 13. d3 {[%clk 0:01:39.8]} 13... Bxc1 {[%clk 0:00:55.2]}
14. Rxc1 {[%clk 0:01:40.7]} 14... a5 {[%clk 0:00:54.6]} 15. a3 {[%clk 0:01:37]}
15... a4 {[%clk 0:00:48.1]} 16. Ba2 {[%clk 0:01:36.2]} 16... Qd4 {[%clk
0:00:45.7]} 17. Qe3 {[%clk 0:01:30.8]} 17... e5 {[%clk 0:00:38.1]} 18. Qxd4
{[%clk 0:01:21.4]} 18... exd4 {[%clk 0:00:38.3]} 19. Ne2 {[%clk 0:01:22.1]}
19... Rd8 {[%clk 0:00:37.1]} 20. Ng3 {[%clk 0:01:21.1]} 20... Be6 {[%clk
0:00:32.2]} 21. Bxe6 {[%clk 0:01:20]} 21... fxe6 {[%clk 0:00:33.1]} 22. Kd2
{[%clk 0:01:09.4]} 22... Kd7 {[%clk 0:00:32.9]} 23. Rhe1 {[%clk 0:01:05.2]}
23... Rhf8 {[%clk 0:00:30.8]} 24. Re2 {[%clk 0:00:29.2]} 24... Ng4 {[%clk
0:00:28.5]} 25. Ne4 {[%clk 0:00:25.8]} 25... Rf5 {[%clk 0:00:26.3]} 26. c3
{[%clk 0:00:21.9]} 26... dxc3+ {[%clk 0:00:25.5]} 27. Rxc3 {[%clk 0:00:22.5]}
27... Re8 {[%clk 0:00:23.2]} 28. f3 {[%clk 0:00:18]} 28... Nf6 {[%clk
0:00:23.1]} 29. Nxf6+ {[%clk 0:00:11.6]} 29... Rxf6 {[%clk 0:00:22.9]} 30. Re4
{[%clk 0:00:10.5]} 30... Rf5 {[%clk 0:00:19.9]} 31. d4 {[%clk 0:00:10.3]} 31...
Ref8 {[%clk 0:00:18.5]} 32. Ke3 {[%clk 0:00:10.1]} 32... Kd6 {[%clk 0:00:17.8]}
33. Rc1 {[%clk 0:00:09.2]} 33... g5 {[%clk 0:00:18]} 34. hxg5 {[%clk 0:00:08]}
34... Rxg5 {[%clk 0:00:18.9]} 35. g4 {[%clk 0:00:05.1]} 35... hxg4 {[%clk
0:00:17.8]} 36. Rxg4 {[%clk 0:00:04.9]} 36... Rgf5 {[%clk 0:00:17.7]} 37. Rf1
{[%clk 0:00:03.2]} 37... Rh8 {[%clk 0:00:17.3]} 38. Rg2 {[%clk 0:00:02.6]} 38...
Rh3 {[%clk 0:00:17.1]} 39. Rgf2 {[%clk 0:00:02.5]} 39... Kd5 {[%clk 0:00:16.8]}
40. Rc1 {[%clk 0:00:02.2]} 40... Rh4 {[%clk 0:00:14.6]} 41. Rc5+ {[%clk
0:00:02.1]} 41... Kd6 {[%clk 0:00:15]} 42. Rxf5 {[%clk 0:00:02.7]} 42... exf5
{[%clk 0:00:15.9]} 43. Rg2 {[%clk 0:00:03.1]} 43... Kd5 {[%clk 0:00:11.4]} 44.
Rg5 {[%clk 0:00:03]} 44... Rh2 {[%clk 0:00:11.3]} 45. Rxf5+ {[%clk 0:00:03]}
45... Ke6 {[%clk 0:00:11.4]} 46. Re5+ {[%clk 0:00:02.2]} 46... Kd6 {[%clk
0:00:11.6]} 47. f4 {[%clk 0:00:02.4]} 47... Rxb2 {[%clk 0:00:11.5]} 48. Rh5
{[%clk 0:00:02.5]} 48... Rb3+ {[%clk 0:00:11.4]} 49. Ke4 {[%clk 0:00:03]} 49...
Rxa3 {[%clk 0:00:11.9]} 50. d5 {[%clk 0:00:03]} 50... cxd5+ {[%clk 0:00:10.8]}
51. Rxd5+ {[%clk 0:00:03.6]} 51... Kc6 {[%clk 0:00:11.2]} 52. Rd8 {[%clk
0:00:03.2]} 52... Ra1 {[%clk 0:00:10.6]} 53. f5 {[%clk 0:00:03.4]} 53... Rf1
{[%clk 0:00:10.5]} 54. Ke5 {[%clk 0:00:03]} 54... b4 {[%clk 0:00:10.7]} 55. Rc8+
{[%clk 0:00:02.4]} 55... Kb5 {[%clk 0:00:10.7]} 56. f6 {[%clk 0:00:02.5]} 56...
b3 {[%clk 0:00:09.7]} 57. Ra8 {[%clk 0:00:01.9]} 57... Kb4 {[%clk 0:00:09.5]}
58. Rd8 {[%clk 0:00:01.2]} 58... b2 {[%clk 0:00:09.5]} 59. Rd4+ {[%clk
0:00:01.8]} 59... Kb3 {[%clk 0:00:09.4]} 0-1

[Event "*** SCC Grand Prix: Titled Tuesday Blitz"]
[Site "Chess.com"]
[Date "2020.07.21"]
[Round "6"]
[White "Sanan_Sjugirov"]
[Black "VerdeNotte"]
[Result "1/2-1/2"]
[WhiteElo "2992"]
[BlackElo "2847"]
[TimeControl "180+1"]
[EndTime "11:08:04 PDT"]
[Termination "Game drawn by stalemate"]

1. d4 {[%clk 0:03:00.9]} 1... Nf6 {[%clk 0:02:59.8]} 2. c4 {[%clk 0:03:00.5]}
2... g6 {[%clk 0:02:59.9]} 3. Nc3 {[%clk 0:02:52.7]} 3... Bg7 {[%clk 0:02:59.7]}
4. e4 {[%clk 0:02:51.4]} 4... d6 {[%clk 0:03:00.1]} 5. f3 {[%clk 0:02:38.2]}
5... O-O {[%clk 0:02:59.1]} 6. Nge2 {[%clk 0:02:35.9]} 6... c5 {[%clk
0:02:59.2]} 7. d5 {[%clk 0:02:35.1]} 7... e6 {[%clk 0:02:53.6]} 8. Ng3 {[%clk
0:02:29.7]} 8... exd5 {[%clk 0:02:53.5]} 9. cxd5 {[%clk 0:02:30.5]} 9... Nh5
{[%clk 0:02:53.6]} 10. Nxh5 {[%clk 0:02:25.9]} 10... gxh5 {[%clk 0:02:54.5]} 11.
Bd3 {[%clk 0:02:13]} 11... f5 {[%clk 0:02:52.5]} 12. O-O {[%clk 0:02:04.1]}
12... f4 {[%clk 0:02:44.8]} 13. g3 {[%clk 0:02:03.4]} 13... Bh3 {[%clk
0:02:41.3]} 14. Re1 {[%clk 0:01:36.3]} 14... Bd4+ {[%clk 0:02:30.2]} 15. Kh1
{[%clk 0:01:36.1]} 15... fxg3 {[%clk 0:02:29.4]} 16. hxg3 {[%clk 0:01:33.2]}
16... Bf2 {[%clk 0:02:23.1]} 17. Kh2 {[%clk 0:01:03.3]} 17... Qd7 {[%clk
0:01:52.1]} 18. Bf4 {[%clk 0:00:32.7]} 18... h4 {[%clk 0:01:40.6]} 19. Qd2
{[%clk 0:00:22.7]} 19... hxg3+ {[%clk 0:01:19.3]} 20. Bxg3 {[%clk 0:00:22.6]}
20... Bxe1 {[%clk 0:01:14]} 21. Rxe1 {[%clk 0:00:22.2]} 21... Rxf3 {[%clk
0:01:10]} 22. Qg5+ {[%clk 0:00:11]} 22... Qg7 {[%clk 0:01:05.3]} 23. Qxg7+
{[%clk 0:00:10.6]} 23... Kxg7 {[%clk 0:01:06.2]} 24. Be2 {[%clk 0:00:10.4]}
24... Rxg3 {[%clk 0:01:03.8]} 25. Kxg3 {[%clk 0:00:11.3]} 25... Bd7 {[%clk
0:01:01.7]} 26. Bd3 {[%clk 0:00:06.5]} 26... Na6 {[%clk 0:00:48.6]} 27. Bxa6
{[%clk 0:00:06]} 27... bxa6 {[%clk 0:00:48.9]} 28. e5 {[%clk 0:00:06.9]} 28...
dxe5 {[%clk 0:00:49.2]} 29. Rxe5 {[%clk 0:00:07.5]} 29... Re8 {[%clk 0:00:44.3]}
30. Rxe8 {[%clk 0:00:07.3]} 30... Bxe8 {[%clk 0:00:45.2]} 31. Ne4 {[%clk
0:00:08]} 31... c4 {[%clk 0:00:41.4]} 32. Nd6 {[%clk 0:00:06.5]} 32... Bf7
{[%clk 0:00:39.9]} 33. Nxc4 {[%clk 0:00:02.3]} 33... Bxd5 {[%clk 0:00:39.9]} 34.
Ne5 {[%clk 0:00:03.1]} 34... Bxa2 {[%clk 0:00:38.9]} 35. Nc6 {[%clk 0:00:03.3]}
35... Bd5 {[%clk 0:00:29.8]} 36. Nb4 {[%clk 0:00:02.3]} 36... Bb7 {[%clk
0:00:29.1]} 37. Nd3 {[%clk 0:00:02.5]} 37... Kf6 {[%clk 0:00:28.1]} 38. Kf4
{[%clk 0:00:03.4]} 38... h5 {[%clk 0:00:25.6]} 39. Nc5 {[%clk 0:00:03.5]} 39...
Bc8 {[%clk 0:00:23.6]} 40. Ne4+ {[%clk 0:00:03.1]} 40... Kg6 {[%clk 0:00:19.2]}
41. Nd6 {[%clk 0:00:02.9]} 41... Be6 {[%clk 0:00:17.2]} 42. b4 {[%clk
0:00:03.7]} 42... h4 {[%clk 0:00:16.9]} 43. Ne4 {[%clk 0:00:03.7]} 43... h3
{[%clk 0:00:14]} 44. Kg3 {[%clk 0:00:04]} 44... Kf5 {[%clk 0:00:11.7]} 45. Nf2
{[%clk 0:00:02.2]} 45... Ke5 {[%clk 0:00:11.5]} 46. Nxh3 {[%clk 0:00:02.5]}
46... Kd4 {[%clk 0:00:05.7]} 47. Nf4 {[%clk 0:00:02.5]} 47... Bc4 {[%clk
0:00:05.9]} 48. Kf3 {[%clk 0:00:02.8]} 48... Kc3 {[%clk 0:00:06.3]} 49. Ke3
{[%clk 0:00:03]} 49... Bb5 {[%clk 0:00:02.1]} 50. Nd5+ {[%clk 0:00:02.8]} 50...
Kc4 {[%clk 0:00:02.3]} 51. Nf4 {[%clk 0:00:02.5]} 51... Kc3 {[%clk 0:00:02.1]}
52. Nd5+ {[%clk 0:00:02.4]} 52... Kc4 {[%clk 0:00:02.7]} 53. Nf4 {[%clk
0:00:02.8]} 53... Kxb4 {[%clk 0:00:03.3]} 54. Kd2 {[%clk 0:00:03.2]} 54... Kb3
{[%clk 0:00:03.8]} 55. Kc1 {[%clk 0:00:04.1]} 55... Ka2 {[%clk 0:00:04.4]} 56.
Nd5 {[%clk 0:00:04.2]} 56... Bc4 {[%clk 0:00:04.1]} 57. Nb4+ {[%clk 0:00:04.5]}
57... Kb3 {[%clk 0:00:02.7]} 58. Nxa6 {[%clk 0:00:04.7]} 58... Bxa6 {[%clk
0:00:02.8]} 59. Kb1 {[%clk 0:00:05]} 59... Bd3+ {[%clk 0:00:02.7]} 60. Ka1
{[%clk 0:00:05.9]} 60... Bh7 {[%clk 0:00:03.1]} 1/2-1/2